[Event "10th Amsterdam Science Park 2022"]
[Site "Amsterdam"]
[Date "2022.07.20"]
[Round "3.5"]
[White "Van Arkel, Rogier"]
[Black "Vroombout, Enrico"]
[Result "1-0"]
[ECO "A01"]
[WhiteElo "2187"]
[BlackElo "2125"]
[Annotator "TA"]
[PlyCount "55"]
[EventDate "2022.07.18"]
[EventCountry "NED"]
[SourceTitle "playchess.com"]
[Source "ChessBase"]
[SourceQuality "1"]
[TimeControl "5400+30"]

{[%evp 9,55,0,16,11,6,-1,10,13,43,5,19,0,0,0,0,-10,0,0,0,-14,-20,-26,0,-5,0,0,0,-62,-58,-67,-61,-65,-58,-62,101,62,80,77,80,71,220,203,294,290,316,310,582,566]} 1. b3 {[%emt 0:01:51]} e5 {[%emt 0:00:36]} 2. Bb2 {[%emt 0:00:06]} Nc6 {[%emt 0:00:07]} 3. e3 {[%emt 0:00:19]} Nf6 {[%emt 0:00:04]} 4. Bb5 {[%emt 0:00:08]} Bd6 {[%emt 0:00:04]} 5. Na3 {[%emt 0:00:05]} Na5 {[%emt 0:20:44]} 6. Be2 {[%emt 0:00:58] A01: Nimzowitsch-Larsen Opening.} a6 {[%emt 0:07:50] Against Nb5} 7. c4 {[%emt 0:12:37]} Nc6 {[%emt 0:05:05]} 8. Nc2 {[%emt 0:02:37] The position is equal.} Be7 {[%emt 0:07:49] [#]} 9. Nf3 $146 {[%emt 0:05:18]} ({Predecessor:} 9. d4 exd4 10. exd4 d5 11. Nf3 O-O 12. O-O Bd6 13. Ne5 dxc4 14. bxc4 Ne7 15. Ne3 {½-½ (23) Dragojlovic,A (2261)-Dedebas,E (2232) Novi Sad 2017}) 9... e4 $1 {[%emt 0:08:04]} 10. Nfd4 {[%emt 0:03:49]} Nxd4 {[%emt 0:00:24]} 11. Nxd4 {[%emt 0:00:48]} d5 {[%emt 0:02:39]} 12. cxd5 {[%emt 0:01:58]} Qxd5 {[%emt 0:00:24]} 13. f3 {[%emt 0:13:42]} Qg5 {[%emt 0:15:57]} 14. O-O {[%emt 0:13:35] Hoping for fxe4.} c5 {[%emt 0:04:28]} 15. Nc2 {[%emt 0:02:10]} Bh3 {[%emt 0:11:05][%csl Gh3][%cal Rg5g2] [#]} 16. Rf2 {[%emt 0:08:37]} Bf5 {[%emt 0:03:05]} 17. Rc1 {[%emt 0:04:37]} Rd8 {[%emt 0:01:28]} 18. Qf1 {[%emt 0:07:11]} (18. Ne1 $11) 18... O-O $15 {[%emt 0:02:48]} ({Don't play} 18... Rxd2 {[#]} 19. Bb5+ $1 Bd7 20. Rxd2 $14) 19. fxe4 {[%emt 0:01:48]} Bxe4 {[%emt 0:00:08]} 20. d3 {[%emt 0:00:16]} Bg6 {[%emt 0:01:20]} 21. e4 {[%emt 0:01:12]} Bh5 $2 {[%emt 0:03:00]} (21... b5 $15 22. Ne1 Ng4) 22. Rf5 $36 {[%emt 0:07:08][%mdl 2048] White is pushing.} Bxe2 {[%emt 0:00:04]} 23. Qxe2 {[%emt 0:01:14]} ({But not} 23. Rxg5 Bxf1 24. Rxf1 Ne8 $11) 23... Qg4 {[%emt 0:01:47]} 24. Rf3 {[%emt 0:00:19]} Nh5 {[%emt 0:00:55] Black cannot hold the game after this.} (24... Nd7 $16 {was called for.}) 25. Ne3 $18 {[%emt 0:00:45]} Qg6 {[%emt 0:01:34]} (25... Nf4 $2 26. Qf1 (26. Nxg4 $2 {too greedy.} Nxe2+ 27. Kf1 Nxc1 $19) 26... Qd7 27. Rxf4 $18) (25... Qe6 {was necessary.} 26. Nf5 Bg5) 26. Nf5 {[%emt 0:02:11]} Bd6 {[%emt 0:00:34]} 27. Rcf1 {[%emt 0:08:41] Black must now prevent Rh3.} f6 $2 {[%emt 0:01:11]} (27... Rfe8 {keeps fighting.} 28. Nxd6 Rxd6 29. Rxf7 Rf6) 28. Rh3 {[%emt 0:00:00] Weighted Error Value: White=0.10 (very precise) /Black=0.40} 1-0

[Event "10th Amsterdam Science Park 2022"]
[Site "Amsterdam"]
[Date "2022.07.20"]
[Round "3.6"]
[White "Berrevoets, Jeroen"]
[Black "Croese, Cor"]
[Result "0-1"]
[ECO "B08"]
[WhiteElo "2064"]
[BlackElo "2173"]
[Annotator "TA"]
[PlyCount "91"]
[EventDate "2022.07.18"]
[EventCountry "NED"]
[SourceTitle "playchess.com"]
[Source "ChessBase"]
[SourceQuality "1"]
[TimeControl "5400+30"]

{[%evp 22,91,0,0,0,-14,-10,-36,-39,-31,-33,-30,0,-34,-7,-4,-13,-31,-35,-55,-10,-31,-16,-19,19,0,4,0,30,11,27,36,38,54,82,95,93,58,72,0,24,2,164,9,15,0,0,0,5,-8,0,-22,0,-297,0,-352,-372,-356,0,0,0,-362,-366,-1029,-1025,-2627,-2617,-29982,-29983,-29987,-29987,-29999]} 1. d4 {[%emt 0:00:19]} g6 {[%emt 0:00:18]} 2. e4 {[%emt 0:01:29]} Bg7 {[%emt 0:00:09]} 3. Nf3 {[%emt 0:00:23]} d6 {[%emt 0:00:19]} 4. Nc3 {[%emt 0:00:29]} c6 {[%emt 0:00:35]} 5. a4 {[%emt 0:00:27]} Nf6 {[%emt 0:01:05]} 6. Be2 {[%emt 0:01:49]} O-O {[%emt 0:00:13]} 7. O-O {[%emt 0:00:16]} Nbd7 {[%emt 0:00:58]} 8. h3 {[%emt 0:00:36]} e5 {[%emt 0:00:28]} 9. Be3 {[%emt 0:07:59]} Qe7 {[%emt 0:00:28]} 10. dxe5 {[%emt 0:04:34]} dxe5 {[%emt 0:00:09]} 11. Bc4 {[%emt 0:06:35] 11.Nd2 is a critical line.} Nc5 {[%emt 0:16:38]} 12. Nd2 {[%emt 0:05:43]} Rd8 {[%emt 0:02:19][%cal Of6e4] B08: Pirc Defence: Classical System.} 13. Qf3 {[%emt 0:09:08]} Ne6 {[%emt 0:02:07]} 14. Bxe6 {[%emt 0:17:18]} Bxe6 {[%emt 0:00:31] Black is slightly better.} 15. a5 {[%emt 0:00:32] [#]} Nd7 $146 {[%emt 0:07:58]} ({Predecessor:} 15... Qb4 16. Rfb1 b6 17. axb6 axb6 18. Rxa8 Rxa8 19. Qd1 Rd8 20. Qc1 b5 21. Ra1 Nd7 {½-½ (31) Kaczorowska,B (2175)-Maciejewski,A (2435) Warsaw 1991}) 16. Qe2 {[%emt 0:02:18]} f5 {[%emt 0:04:58]} 17. f3 {[%emt 0:02:54]} Bf6 {[%emt 0:10:25]} 18. exf5 {[%emt 0:02:49]} gxf5 {[%emt 0:00:11]} 19. g4 {[%emt 0:00:04]} Kh8 {[%emt 0:03:59]} 20. Kh2 {[%emt 0:34:48]} Bg5 {[%emt 0:00:39]} 21. Rg1 {[%emt 0:00:00]} Bxe3 {[%emt 0:09:19]} 22. Qxe3 {[%emt 0:00:00]} Qh4 {[%emt 0:00:29]} 23. Ra4 {[%emt 0:00:00] gxf5 is the strong threat.} f4 {[%emt 0:05:38]} 24. Qe2 {[%emt 0:00:00]} ({But not} 24. Qe1 $2 Qxe1 25. Rxe1 Nc5 $19) 24... Qe7 {[%emt 0:02:43]} 25. Nde4 {[%emt 0:00:00]} b5 {[%emt 0:04:34]} 26. axb6 {[%emt 0:00:00]} Nxb6 {[%emt 0:00:51]} 27. Ra5 {[%emt 0:00:00]} Bc4 {[%emt 0:00:25]} 28. Qf2 {[%emt 0:00:00]} Nd5 {[%emt 0:03:00]} 29. Nxd5 {[%emt 0:00:00]} cxd5 {[%emt 0:02:55]} 30. Nc5 {[%emt 0:00:00]} (30. Nd2 $16) 30... Rac8 {[%emt 0:09:24]} 31. Rga1 {[%emt 0:00:00]} d4 $2 {[%emt 0:00:49]} (31... a6 $1 $11) 32. b4 $2 {[%emt 0:00:00]} (32. Rxa7 $18 Rc7 33. Rxc7 Qxc7 34. b4) 32... a6 $11 {[%emt 0:03:12]} 33. Qe1 {[%emt 0:01:55]} Rd6 {[%emt 0:02:10]} 34. Rd1 {[%emt 0:03:10]} h5 {[%emt 0:02:36]} 35. Kg2 {[%emt 0:00:24]} hxg4 {[%emt 0:00:19]} 36. hxg4 {[%emt 0:00:37][%cal Oc5b7]} Kg7 {[%emt 0:00:15]} (36... Kg8 $5 {[%cal Rd6h6]} 37. Ne4 Rg6 $15) 37. Nb7 $2 {[%emt 0:01:33][%mdl 8192] [#]} Rd5 $2 {[%emt 0:01:55]} (37... Re6 $1 $19 38. Nc5 Rh6) 38. Rxd5 $4 {[%emt 0:00:31][%mdl 8192]} (38. Nc5 $11 {and White is okay.}) 38... Bxd5 $19 {[%emt 0:00:02]} 39. Nc5 {[%emt 0:00:08] And now Rxd4 would win.} Kf7 {[%emt 0:01:33]} 40. Qh1 {[%emt 0:00:43]} Kg7 {[%emt 0:01:24] Prevents Qh7+. Strongly threatening ...e4. The board is on fire.} 41. Qe1 {[%emt 0:00:00] Inhibits e4. Black must now prevent Rxd4.} Qg5 {[%emt 0:00:00] ( -> ...Qxg4+)} 42. Kf1 $2 {[%emt 0:00:00]} ({Don't play} 42. Kg1 {[#]} Rxc5 $1 {[%mdl 512]} 43. bxc5 Bxf3 $19) (42. Ne4 Rxc2+ 43. Kg1) 42... Rh8 {[%emt 0:00:00] aiming for ...Rh1+.} 43. Ke2 {[%emt 0:00:00]} Rh2+ {[%emt 0:00:00]} 44. Kd3 {[%emt 0:00:00]} Qg6+ {[%emt 0:00:00]} 45. Ne4 {[%emt 0:00:00]} Qc6 {[%emt 0:00:00][%csl Gh2][%cal Rc6c2]} 46. Nd6 {[%emt 0:00:00] Weighted Error Value: White=0.76/Black=0.46} 0-1

[Event "10th Amsterdam Science Park 2022"]
[Site "Amsterdam"]
[Date "2022.07.20"]
[Round "3.7"]
[White "Schilstra, Laurens"]
[Black "Honkoop, Gilian"]
[Result "1-0"]
[ECO "C77"]
[WhiteElo "1993"]
[BlackElo "2205"]
[Annotator "TA"]
[PlyCount "73"]
[EventDate "2022.07.18"]
[EventCountry "NED"]
[SourceTitle "playchess.com"]
[Source "ChessBase"]
[SourceQuality "1"]
[TimeControl "5400+30"]

{[%evp 11,73,6,9,-9,0,-5,-2,-8,12,11,17,0,-8,-5,0,0,19,30,8,-5,145,141,116,113,293,117,304,187,197,183,194,181,188,191,290,325,470,416,1062,1071,1039,1031,951,904,29988,29988,29986,1033,1875,1372,1501,843,835,824,817,808,1779,1535,29990,29991,29992,29993,29993,29993]} 1. e4 {[%emt 0:00:12]} e5 {[%emt 0:00:01]} 2. Nf3 {[%emt 0:00:12]} Nc6 {[%emt 0:00:03]} 3. Bb5 {[%emt 0:00:08]} a6 {[%emt 0:00:10]} 4. Ba4 {[%emt 0:00:08]} Nf6 {[%emt 0:00:06]} 5. Bxc6 {[%emt 0:00:09]} dxc6 {[%emt 0:00:09]} 6. d3 {[%emt 0:00:23]} Bd6 {[%emt 0:02:13] 6...Bd6 is better than 6...Nd7.} 7. Nc3 {[%emt 0:01:48] C77: Ruy Lopez: 3...a6 4 Ba4 Nf6, unusual lines.} O-O {[%emt 0:02:49]} 8. Bg5 {[%emt 0:00:19]} h6 {[%emt 0:01:03] [#]} 9. Be3 $146 {[%emt 0:01:26] The position is equal.} ({Predecessor:} 9. Bd2 Re8 10. Qe2 Be6 11. O-O-O c5 12. h3 b5 13. g4 b4 14. Nb1 Bxa2 15. g5 hxg5 16. Bxg5 {1-0 (49) Whale,M (1743)-Orton,P (1608) Fishguard 2018}) 9... c5 {[%emt 0:03:17]} 10. h3 {[%emt 0:01:13]} Be6 {[%emt 0:02:44]} 11. Qe2 {[%emt 0:02:15]} Nd7 {[%emt 0:04:14]} 12. g4 {[%emt 0:05:16][%cal Bg2g4,Bg4g5,Bg5f6][%mdl 32]} Nb8 {[%emt 0:00:52]} 13. g5 {[%emt 0:04:00]} h5 {[%emt 0:01:47]} 14. Nd5 {[%emt 0:00:54][%cal Od5f6] Threatens to win with Nf6+!} Nd7 {[%emt 0:04:37] Inhibits Nf6+.} 15. Rg1 {[%emt 0:10:09]} c6 {[%emt 0:07:37] [#] Black is on the road to losing.} (15... Bxh3 16. Nxe5 g6 17. Nxd7 Bxd7 18. Nf6+ Kg7 19. O-O-O $18) ({Better is} 15... g6 $1 $11) 16. Nf6+ $1 $16 {[%emt 0:01:32][%mdl 512]} Nxf6 {[%emt 0:00:56]} 17. gxf6 {[%emt 0:00:09]} g6 {[%emt 0:07:42] [#]} (17... Qxf6 $16 18. Bg5 Qg6) 18. Bg5 $2 {[%emt 0:06:57]} (18. Nh4 $1 $18 {is the precise move to win. Strongly threatening Qxh5.} Kh7 19. Qf3) 18... Qd7 $2 {[%emt 0:21:47]} (18... Bxh3 19. Qd2 Re8 20. Bh4) (18... Re8 $16) 19. Qe3 {[%emt 0:03:08]} Kh7 {[%emt 0:14:26]} (19... Bxh3 $2 20. Bh4 Kh7 21. Ng5+ Kg8 22. Nxh3 $18) 20. Bh4 {[%emt 0:07:21] Black must now prevent Ng5+.} ({Don't play} 20. Bh6 Rg8 21. O-O-O (21. Bg7 Rxg7 22. Ng5+ Kh8 $16) 21... Rae8) 20... Rh8 {[%emt 0:00:42]} 21. O-O-O {[%emt 0:03:52]} Kg8 {[%emt 0:03:01]} 22. Rg5 {[%emt 0:05:44]} Qc7 {[%emt 0:04:47]} (22... Bg4 $142 23. hxg4 hxg4) 23. Bg3 $18 {[%emt 0:01:33]} Bxh3 {[%emt 0:00:20]} (23... Kf8 $142 24. Nxe5 (24. Bxe5 Bxh3 25. Rh1 Be6 $16) 24... h4) 24. Nxe5 {[%emt 0:03:30]} Be6 {[%emt 0:01:32] [#]} (24... Kf8 $142 25. Rxg6 (25. Nc4 Bxg3 26. Qxc5+ Kg8 $18) 25... Bxe5) 25. Nxg6 $1 {[%emt 0:03:08][%mdl 512]} fxg6 {[%emt 0:00:30]} 26. Rxg6+ {[%emt 0:00:06]} Kf8 {[%emt 0:00:18]} 27. e5 {[%emt 0:00:07][%cal Be4e5,Be5d6][%mdl 32]} Qa5 {[%emt 0:01:43]} 28. exd6 {[%emt 0:00:33]} Qxa2 {[%emt 0:00:06]} 29. Qxc5 {[%emt 0:00:39]} (29. Rg7 $142 Qa1+ 30. Kd2 Qa5+ 31. c3 Qa2 32. Rxb7 Rh7 33. Rxh7 Qxb2+ 34. Ke1 Qxc3+ 35. Rd2 Qa1+ 36. Rd1 Qc3+ 37. Rd2 Qa1+ 38. Ke2 Bg4+ 39. f3 Qxf6 40. Be5) 29... b6 {[%emt 0:03:20]} 30. Qxb6 {[%emt 0:01:56] d7 would kill now.} Rh7 {[%emt 0:01:36]} 31. Rg7 {[%emt 0:00:39]} Rxg7 {[%emt 0:00:59]} 32. fxg7+ {[%emt 0:00:06]} Kg8 {[%emt 0:00:12]} 33. Re1 {[%emt 0:02:44] Hoping for Re5.} Re8 {[%emt 0:00:53]} 34. Qc5 {[%emt 0:03:18]} Kxg7 {[%emt 0:02:46]} 35. Qg5+ {[%emt 0:00:15] White mates.} Kf8 {[%emt 0:00:07]} 36. Qf6+ {[%emt 0:00:27]} Kg8 {[%emt 0:00:08]} 37. Re5 {[%emt 0:00:41] Weighted Error Value: White=0.22 (precise) /Black=0.75} 1-0

[Event "10th Amsterdam Science Park 2022"]
[Site "Amsterdam"]
[Date "2022.07.20"]
[Round "3.8"]
[White "Stolwijk, Colin"]
[Black "Theulings, Paul-Peter"]
[Result "1-0"]
[ECO "C24"]
[WhiteElo "2277"]
[BlackElo "2056"]
[Annotator "TA"]
[PlyCount "77"]
[EventDate "2022.07.18"]
[EventCountry "NED"]
[SourceTitle "playchess.com"]
[Source "ChessBase"]
[SourceQuality "1"]
[TimeControl "5400+30"]

{[%evp 9,77,19,21,33,10,12,19,10,21,-16,19,14,19,-16,0,0,20,20,16,16,16,25,26,-14,-14,-13,-8,-8,-14,-57,0,0,4,-31,-3,-26,-18,-138,-144,-117,-110,-134,-121,-125,-131,-139,-114,-193,0,-136,-81,-295,-146,-152,-97,-76,1253,1242,1397,1375,1366,1355,5181,2064,1835,1740,29984,29985,6491,5821]} 1. e4 {[%emt 0:00:04]} e5 {[%emt 0:00:06]} 2. Bc4 {[%emt 0:00:04]} Nf6 {[%emt 0:00:12]} 3. d3 {[%emt 0:00:04]} c6 {[%emt 0:00:10]} 4. Nf3 {[%emt 0:00:08]} d5 {[%emt 0:00:14]} 5. Bb3 {[%emt 0:00:04]} a5 {[%emt 0:00:20]} 6. a4 {[%emt 0:00:05] C24: Bishop's Opening: 2...Nf6.} (6. Nxe5 $2 a4 7. Bxd5 cxd5 8. exd5 Nxd5 $19) 6... Bb4+ {[%emt 0:01:19]} 7. c3 {[%emt 0:00:04]} Bd6 {[%emt 0:00:14]} 8. exd5 {[%emt 0:00:40] The position is equal.} cxd5 {[%emt 0:00:13]} 9. Na3 {[%emt 0:00:26] [#]} Nbd7 $146 {[%emt 0:02:56]} ({Predecessor:} 9... Nc6 10. Nb5 Bb8 11. Bg5 Be6 12. O-O h6 13. Bh4 O-O 14. Re1 g5 15. Bg3 Bg4 {0-1 (61) Onischuk,V (2608)-Motylev,A (2665) Minsk 2017}) 10. Nb5 {[%emt 0:01:55]} Bb8 {[%emt 0:00:10]} 11. O-O {[%emt 0:01:50]} O-O {[%emt 0:03:57]} 12. Bg5 {[%emt 0:04:12][%cal Bc1g5,Bg5h4,Bh4g3][%mdl 32]} h6 {[%emt 0:01:44]} 13. Bh4 {[%emt 0:00:07]} Re8 {[%emt 0:02:28]} 14. Re1 {[%emt 0:00:57]} (14. Bxd5 g5 15. Bxg5 hxg5 $17) 14... Ra6 {[%emt 0:01:20]} 15. Bg3 {[%emt 0:04:48]} (15. Bxd5 g5 16. Bxf7+ Kxf7 $17) 15... Rae6 {[%emt 0:05:20]} 16. Ba2 {[%emt 0:07:46]} b6 {[%emt 0:09:05]} 17. d4 {[%emt 0:13:22]} e4 {[%emt 0:03:52]} 18. Bxb8 {[%emt 0:00:06]} Nxb8 {[%emt 0:00:32][%cal Bd7b8,Bb8a6,Ba6b4][%mdl 32]} (18... exf3 19. Rxe6 Rxe6 20. Bc7 $16) 19. Ne5 {[%emt 0:02:56]} Bb7 {[%emt 0:08:35]} (19... Nbd7 $15) 20. c4 $11 {[%emt 0:02:35]} Na6 {[%emt 0:06:24]} 21. cxd5 {[%emt 0:07:18]} Nxd5 {[%emt 0:01:17]} 22. Nc3 {[%emt 0:04:50][%cal Oe5f7] Hoping for Nxf7!} ({Don't play} 22. Rxe4 f6 23. f4 R6e7 $15) 22... Nab4 {[%emt 0:01:48]} 23. Bb1 {[%emt 0:01:57]} (23. Bb3 $11 {remains equal.}) 23... f6 $17 {[%emt 0:10:46][%cal Bf7f6,Bf6f5][%mdl 32]} 24. Ng4 {[%emt 0:02:58]} f5 {[%emt 0:01:22]} 25. Nxd5 {[%emt 0:06:07]} Nxd5 {[%emt 0:01:57]} 26. Ne5 {[%emt 0:01:29]} Nb4 {[%emt 0:05:01]} 27. Ra3 {[%emt 0:03:29]} Rd6 {[%emt 0:05:58] Threatens to win with ...Rxe5.} 28. Qh5 {[%emt 0:00:50]} (28. Qb3+ $17 Bd5 29. Qe3) 28... Rf6 $2 {[%emt 0:02:10]} (28... Rf8 $19 29. Rg3 Rff6) 29. Rc3 {[%emt 0:06:18]} (29. g4 $1 $11) 29... Re7 {[%emt 0:02:35]} ({Black should try} 29... Ref8 30. Rd1 Rd6) 30. Rec1 $2 {[%emt 0:10:07]} (30. Rd1 $17) 30... Kh7 {[%emt 0:01:58]} (30... Qxd4 $19 {has better winning chances.} 31. Ng6 Rd7) 31. g4 {[%emt 0:03:32][%cal Bg2g4,Bg4g5][%mdl 32]} g6 {[%emt 0:11:53]} (31... Qxd4 $142 32. g5 Qxe5 $1 33. gxf6 Qxf6) 32. Qh3 {[%emt 0:00:03] And now g5 would win.} ({Don't blunder} 32. Qh4 $2 g5 33. Qg3 f4 $19) 32... Qxd4 $2 {[%emt 0:00:49][%mdl 8192]} (32... Rf8 $17 33. Qh4 (33. g5 $2 h5 $19) 33... Rg7 34. Qxd8 Rxd8) 33. g5 $1 $18 {[%emt 0:00:41]} Rd6 {[%emt 0:07:13]} 34. Qxh6+ {[%emt 0:08:31]} Kg8 {[%emt 0:00:02]} 35. Nxg6 {[%emt 0:00:10] Intending Qf8+ and mate.} Rg7 {[%emt 0:03:07] [#]} 36. Rc8+ $1 {[%emt 0:01:01][%mdl 512]} Bxc8 {[%emt 0:00:10]} 37. Rxc8+ {[%emt 0:00:02]} Rd8 {[%emt 0:00:55]} 38. Rxd8+ {[%emt 0:00:26]} Qxd8 {[%emt 0:00:02]} 39. Qh8+ {[%emt 0:00:08][%mdl 64] Skewer. White used his chance.  Weighted Error Value: White=0.32/Black=0.47} 1-0

[Event "10th Amsterdam Science Park 2022"]
[Site "Amsterdam"]
[Date "2022.07.20"]
[Round "3.9"]
[White "Afek, Yochanan"]
[Black "Labruyere, Roger"]
[Result "1/2-1/2"]
[ECO "B22"]
[WhiteElo "2210"]
[BlackElo "2070"]
[Annotator "TA"]
[PlyCount "86"]
[EventDate "2022.07.18"]
[EventCountry "NED"]
[SourceTitle "playchess.com"]
[Source "ChessBase"]
[SourceQuality "1"]
[TimeControl "5400+30"]

{[%evp 19,86,3,22,-26,-36,-32,-27,-64,-26,-18,-32,-39,-20,-20,-20,-20,-18,-30,-29,-37,-29,-64,-27,-17,-17,-12,-11,-11,-19,-25,-25,-24,-23,-26,-21,-23,-18,-24,-20,-26,-25,-41,-25,-31,-11,-18,-15,-19,-22,-22,-15,-20,-18,-33,-33,-27,-25,-27,-28,-28,-25,-25,0,0,0,0,0,0,14]} 1. e4 {[%emt 0:02:04]} c5 {[%emt 0:00:05]} 2. Nf3 {[%emt 0:01:28]} e6 {[%emt 0:00:07]} 3. c3 {[%emt 0:00:05]} Nf6 {[%emt 0:01:42]} 4. e5 {[%emt 0:00:09]} Nd5 {[%emt 0:00:04]} 5. Bc4 {[%emt 0:00:20]} Nc6 {[%emt 0:00:35]} 6. O-O {[%emt 0:00:09]} Be7 {[%emt 0:02:03]} 7. d4 {[%emt 0:00:18]} cxd4 {[%emt 0:00:33]} 8. cxd4 {[%emt 0:00:26]} d6 {[%emt 0:00:19]} 9. Qe2 {[%emt 0:00:39]} O-O {[%emt 0:27:14]} 10. Qe4 {[%emt 0:03:45] 10.Rd1 is setting a new trend.} Ndb4 {[%emt 0:07:14] [#] And now ...d5 would win.} 11. Bb3 {[%emt 0:08:37] B22: Sicilian: 2 c3.} (11. exd6 $142 Bxd6 12. Nc3 (12. a3 Nd5 $14)) 11... dxe5 $11 {[%emt 0:01:24]} 12. dxe5 {[%emt 0:02:44]} Qd3 {[%emt 0:00:13] [#]} 13. Qf4 $146 {[%emt 0:08:47] Black has an edge.} ({Predecessor:} 13. Nc3 Qxe4 14. Nxe4 Rd8 15. Bg5 Bxg5 16. Nexg5 Bd7 17. Rfd1 Na5 18. Nd4 Nxb3 19. axb3 {½-½ (38) Vlassov,N (2294)-Zubov,A (2598) Chess.com INT 2021}) 13... Nc2 {[%emt 0:14:50]} 14. Ne1 {[%emt 0:03:10]} Nxe1 {[%emt 0:00:04]} 15. Rxe1 {[%emt 0:00:03]} Nd4 {[%emt 0:05:05] [#] Hoping for ...Ne2+.} 16. Nc3 {[%emt 0:02:34] Against Ne2+. aiming for Re3.} Nxb3 {[%emt 0:00:21]} 17. axb3 {[%emt 0:00:09]} Rd8 {[%emt 0:00:41]} 18. Be3 {[%emt 0:00:32] Black must now prevent Red1.} Bd7 {[%emt 0:01:10]} 19. b4 {[%emt 0:15:21]} Bc6 {[%emt 0:07:35]} 20. Rxa7 {[%emt 0:10:13]} Rxa7 {[%emt 0:02:26]} (20... Qc2 {looks sharper.} 21. Rxa8 Rxa8 22. b5 Qxb2 23. Qd4 Bxb5 24. Nd5 Qxd4 25. Nxe7+ Kf8) 21. Bxa7 {[%emt 0:00:06]} Qd2 {[%emt 0:00:37]} 22. Qxd2 {[%emt 0:04:21]} Rxd2 {[%emt 0:00:03]} 23. b5 {[%emt 0:01:18]} Be8 {[%emt 0:00:06]} 24. Re2 {[%emt 0:01:40]} Rxe2 {[%emt 0:00:25]} 25. Nxe2 {[%emt 0:00:05]} Bxb5 {[%emt 0:00:05][%mdl 4096] Endgame KBB-KBN} 26. Nd4 {[%emt 0:00:25]} Bd3 {[%emt 0:00:19]} 27. f3 {[%emt 0:00:50]} Kf8 {[%emt 0:04:43]} 28. Kf2 {[%emt 0:00:06]} Ke8 {[%emt 0:01:12]} 29. Ke3 {[%emt 0:00:13]} Bc4 {[%emt 0:00:26]} 30. Nc2 {[%emt 0:02:23]} Kd7 {[%emt 0:00:26]} 31. Kd4 {[%emt 0:00:12]} Bd5 {[%emt 0:07:09]} 32. Bc5 {[%emt 0:03:43]} Bd8 {[%emt 0:03:47]} 33. Nb4 {[%emt 0:01:53]} Bb3 {[%emt 0:05:10]} 34. Kc3 $1 {[%emt 0:10:56]} Ba4 {[%emt 0:01:00]} 35. Kc4 {[%emt 0:00:15]} Bd1 {[%emt 0:01:57]} 36. Be3 {[%emt 0:02:32]} Be2+ {[%emt 0:00:47]} 37. Kc3 {[%emt 0:01:15]} Ba5 {[%emt 0:03:03]} 38. Bc5 {[%emt 0:00:23]} g5 {[%emt 0:01:46]} 39. Kd4 {[%emt 0:02:59]} g4 {[%emt 0:01:32]} 40. f4 {[%emt 0:02:08]} g3 {[%emt 0:00:26]} 41. hxg3 {[%emt 0:00:49] The position is equal.} Bf1 {[%emt 0:00:13]} 42. g4 {[%emt 0:03:28]} Bxg2 {[%emt 0:00:05]} 43. g5 {[%emt 0:00:08]} Bh1 {[%emt 0:00:56] Weighted Error Value: White=0.07 (flawless) /Black=0.06 (flawless)} 1/2-1/2